[Event "Late-Titled-Tuesday-Blitz-May-28-2024"]
[Site "Chess.com"]
[Date "2024.05.28"]
[Round "8"]
[White "joksijoksi"]
[Black "aval7an"]
[Result "0-1"]
[WhiteElo "2526"]
[BlackElo "2679"]
[TimeControl "180+1"]
[EndTime "15:27:54 PDT"]
[Termination "aval7an won by resignation"]

1. d4 {[%clk 0:02:59.6]} 1... Nf6 {[%clk 0:02:33.6]} 2. c4 {[%clk 0:02:59.1]}
2... e6 {[%clk 0:02:33.2]} 3. Nf3 {[%clk 0:02:57.2]} 3... d5 {[%clk 0:02:34.1]}
4. Nc3 {[%clk 0:02:56]} 4... c5 {[%clk 0:02:30.4]} 5. cxd5 {[%clk 0:02:55.1]}
5... Nxd5 {[%clk 0:02:29.1]} 6. e4 {[%clk 0:02:49.7]} 6... Nxc3 {[%clk
0:02:28.8]} 7. bxc3 {[%clk 0:02:50.3]} 7... cxd4 {[%clk 0:02:29.7]} 8. cxd4
{[%clk 0:02:51]} 8... Bb4+ {[%clk 0:02:30.4]} 9. Bd2 {[%clk 0:02:51.6]} 9...
Bxd2+ {[%clk 0:02:31.3]} 10. Qxd2 {[%clk 0:02:52.2]} 10... O-O {[%clk
0:02:32.2]} 11. Bd3 {[%clk 0:02:47.9]} 11... b6 {[%clk 0:02:30.2]} 12. O-O
{[%clk 0:02:45.4]} 12... Bb7 {[%clk 0:02:28.4]} 13. Rfd1 {[%clk 0:02:43.9]}
13... Nd7 {[%clk 0:02:26]} 14. Rac1 {[%clk 0:02:43.2]} 14... h6 {[%clk
0:02:24.3]} 15. Qf4 {[%clk 0:02:42.9]} 15... Rc8 {[%clk 0:02:22.5]} 16. d5
{[%clk 0:02:37]} 16... Qf6 {[%clk 0:02:01.5]} 17. Qd6 {[%clk 0:02:31.4]} 17...
Nc5 {[%clk 0:01:57.7]} 18. Bb1 {[%clk 0:02:16.3]} 18... Rfd8 {[%clk 0:01:52.8]}
19. Qg3 {[%clk 0:02:16.3]} 19... exd5 {[%clk 0:01:50.1]} 20. e5 {[%clk
0:02:16.1]} 20... Qe7 {[%clk 0:01:45.4]} 21. Nd4 {[%clk 0:02:16.2]} 21... Ne4
{[%clk 0:01:26.2]} 22. Nf5 {[%clk 0:01:56.9]} 22... Nxg3 {[%clk 0:00:45.9]} 23.
Nxe7+ {[%clk 0:01:56.1]} 23... Kf8 {[%clk 0:00:46.8]} 24. Nxc8 {[%clk 0:01:56]}
24... Ne2+ {[%clk 0:00:41.8]} 25. Kf1 {[%clk 0:01:55.7]} 25... Ba6 {[%clk
0:00:34]} 26. Nxa7 {[%clk 0:01:30.2]} 26... Nxc1+ {[%clk 0:00:32.8]} 27. Ke1
{[%clk 0:01:30.7]} 27... Ne2 {[%clk 0:00:26.4]} 28. Nc6 {[%clk 0:01:27.7]} 28...
Rc8 {[%clk 0:00:23.2]} 29. Nb4 {[%clk 0:01:26.6]} 29... Bc4 {[%clk 0:00:19.6]}
30. Nxd5 {[%clk 0:01:01.5]} 30... Bxd5 {[%clk 0:00:20]} 31. Kxe2 {[%clk
0:01:01.3]} 31... Bxg2 {[%clk 0:00:20.5]} 32. Bf5 {[%clk 0:00:55.7]} 32... Ra8
{[%clk 0:00:18.3]} 33. Bd7 {[%clk 0:00:55.9]} 33... Rxa2+ {[%clk 0:00:16.9]} 34.
Ke3 {[%clk 0:00:50.5]} 34... Ra3+ {[%clk 0:00:16.3]} 35. Ke2 {[%clk 0:00:50.1]}
35... Bf3+ {[%clk 0:00:16.4]} 36. Kd2 {[%clk 0:00:50.5]} 36... Bxd1 {[%clk
0:00:17.3]} 0-1

[Event "Late-Titled-Tuesday-Blitz-May-28-2024"]
[Site "Chess.com"]
[Date "2024.05.28"]
[Round "8"]
[White "TheDiscoOne"]
[Black "TheAlienParty"]
[Result "0-1"]
[WhiteElo "2503"]
[BlackElo "2392"]
[TimeControl "180+1"]
[EndTime "15:27:57 PDT"]
[Termination "TheAlienParty won on time"]

1. c4 {[%clk 0:03:00.9]} 1... e5 {[%clk 0:02:50.6]} 2. g3 {[%clk 0:03:00.6]}
2... f5 {[%clk 0:02:49.6]} 3. Nc3 {[%clk 0:02:59.6]} 3... Nf6 {[%clk 0:02:49.1]}
4. Nf3 {[%clk 0:02:54.1]} 4... d6 {[%clk 0:02:47.8]} 5. d4 {[%clk 0:02:53.5]}
5... e4 {[%clk 0:02:47.2]} 6. Nh4 {[%clk 0:02:48.3]} 6... d5 {[%clk 0:02:45.9]}
7. Bg5 {[%clk 0:02:43.7]} 7... dxc4 {[%clk 0:02:38.8]} 8. e3 {[%clk 0:02:43.7]}
8... Be6 {[%clk 0:02:37.6]} 9. d5 {[%clk 0:02:33.3]} 9... Bd7 {[%clk 0:02:32.6]}
10. Bxc4 {[%clk 0:02:31.6]} 10... h6 {[%clk 0:02:30.7]} 11. Bxf6 {[%clk
0:02:26.2]} 11... Qxf6 {[%clk 0:02:30.1]} 12. Qh5+ {[%clk 0:02:25.6]} 12... Kd8
{[%clk 0:02:25.7]} 13. Ng6 {[%clk 0:02:19.1]} 13... Be8 {[%clk 0:02:24.9]} 14.
d6 {[%clk 0:02:04]} 14... Bxd6 {[%clk 0:02:18.9]} 15. O-O-O {[%clk 0:01:51]}
15... Qxg6 {[%clk 0:02:17.3]} 16. Qe2 {[%clk 0:01:48.8]} 16... Nd7 {[%clk
0:02:15.2]} 17. Nb5 {[%clk 0:01:48.4]} 17... Be5 {[%clk 0:02:13.2]} 18. Qc2
{[%clk 0:01:44.9]} 18... a6 {[%clk 0:02:10.6]} 19. Nd4 {[%clk 0:01:44.3]} 19...
Bf7 {[%clk 0:02:00.8]} 20. Rd2 {[%clk 0:01:35.5]} 20... Bxc4 {[%clk 0:01:59.1]}
21. Qxc4 {[%clk 0:01:33.3]} 21... Kc8 {[%clk 0:01:52.5]} 22. Rhd1 {[%clk
0:01:14.9]} 22... Nb6 {[%clk 0:01:51.5]} 23. Qb4 {[%clk 0:00:56.4]} 23... Kb8
{[%clk 0:01:48.5]} 24. Kb1 {[%clk 0:00:55.5]} 24... Ka7 {[%clk 0:01:47.5]} 25.
Qa5 {[%clk 0:00:49.6]} 25... Bxd4 {[%clk 0:01:33.4]} 26. Rxd4 {[%clk 0:00:50.5]}
26... Qf6 {[%clk 0:01:27.5]} 27. Qc5 {[%clk 0:00:50]} 27... Rad8 {[%clk
0:01:17.6]} 28. a4 {[%clk 0:00:45.5]} 28... Rxd4 {[%clk 0:01:16.5]} 29. Rxd4
{[%clk 0:00:45.2]} 29... Kb8 {[%clk 0:01:15.3]} 30. a5 {[%clk 0:00:44.6]} 30...
Nc8 {[%clk 0:01:13.7]} 31. Rd7 {[%clk 0:00:39.2]} 31... Qc6 {[%clk 0:01:04.1]}
32. Qxf5 {[%clk 0:00:38.9]} 32... g6 {[%clk 0:01:03.7]} 33. Qh3 {[%clk
0:00:38.2]} 33... h5 {[%clk 0:00:58.3]} 34. Rg7 {[%clk 0:00:35.9]} 34... Rd8
{[%clk 0:00:56.6]} 35. Qf1 {[%clk 0:00:20.5]} 35... Rd6 {[%clk 0:00:55.8]} 36.
Rg8 {[%clk 0:00:19.8]} 36... Qd5 {[%clk 0:00:51.7]} 37. Qh3 {[%clk 0:00:18.3]}
37... Qxg8 {[%clk 0:00:51.1]} 0-1

[Event "Late-Titled-Tuesday-Blitz-May-28-2024"]
[Site "Chess.com"]
[Date "2024.05.28"]
[Round "8"]
[White "luca_va99"]
[Black "Tol_Tol"]
[Result "1-0"]
[WhiteElo "2191"]
[BlackElo "2336"]
[TimeControl "180+1"]
[EndTime "15:28:01 PDT"]
[Termination "luca_va99 won by checkmate"]

1. e4 {[%clk 0:03:00.9]} 1... c5 {[%clk 0:02:59.6]} 2. Nf3 {[%clk 0:03:00.4]}
2... Nc6 {[%clk 0:02:59.9]} 3. b4 {[%clk 0:02:59.6]} 3... cxb4 {[%clk
0:02:59.7]} 4. d4 {[%clk 0:02:59.3]} 4... e5 {[%clk 0:02:52.3]} 5. d5 {[%clk
0:02:49]} 5... Nce7 {[%clk 0:02:45.1]} 6. Nxe5 {[%clk 0:02:45.7]} 6... d6 {[%clk
0:02:44.9]} 7. Nd3 {[%clk 0:02:41.9]} 7... a5 {[%clk 0:02:39.5]} 8. a3 {[%clk
0:02:39.3]} 8... bxa3 {[%clk 0:02:38.4]} 9. Bxa3 {[%clk 0:02:38.2]} 9... Ng6
{[%clk 0:02:39]} 10. Nd2 {[%clk 0:02:28.4]} 10... Nf6 {[%clk 0:02:37.3]} 11. Be2
{[%clk 0:02:26]} 11... Be7 {[%clk 0:02:37.4]} 12. O-O {[%clk 0:02:23.7]} 12...
O-O {[%clk 0:02:37.6]} 13. f4 {[%clk 0:02:23.3]} 13... b5 {[%clk 0:02:26]} 14.
Bb2 {[%clk 0:02:21.8]} 14... Bb7 {[%clk 0:02:20.8]} 15. f5 {[%clk 0:02:12.8]}
15... Ne5 {[%clk 0:02:16.5]} 16. Nxe5 {[%clk 0:02:12.8]} 16... dxe5 {[%clk
0:02:16.9]} 17. Bxe5 {[%clk 0:02:13]} 17... Re8 {[%clk 0:02:14]} 18. Bd4 {[%clk
0:02:04.4]} 18... Qd7 {[%clk 0:01:27.7]} 19. Bd3 {[%clk 0:01:58.6]} 19... Rec8
{[%clk 0:01:12.1]} 20. Qe2 {[%clk 0:01:55.7]} 20... Bc5 {[%clk 0:01:08.9]} 21.
Bxc5 {[%clk 0:01:41.4]} 21... Rxc5 {[%clk 0:01:08.7]} 22. Nb3 {[%clk 0:01:41.7]}
22... Rc3 {[%clk 0:01:03.4]} 23. Bxb5 {[%clk 0:01:40.4]} 23... Qd6 {[%clk
0:01:00.1]} 24. Qd2 {[%clk 0:01:30]} 24... Rac8 {[%clk 0:00:55.7]} 25. Bd3
{[%clk 0:01:17.1]} 25... Ng4 {[%clk 0:00:46.5]} 26. g3 {[%clk 0:01:10.9]} 26...
Ne5 {[%clk 0:00:46]} 27. Rxa5 {[%clk 0:00:51.3]} 27... Nxd3 {[%clk 0:00:39.1]}
28. cxd3 {[%clk 0:00:45.2]} 28... Rxb3 {[%clk 0:00:39]} 29. Rc1 {[%clk
0:00:28.5]} 29... Rxc1+ {[%clk 0:00:34.7]} 30. Qxc1 {[%clk 0:00:29.4]} 30...
Qb6+ {[%clk 0:00:32]} 31. Qc5 {[%clk 0:00:26.7]} 31... Qxc5+ {[%clk 0:00:17.3]}
32. Rxc5 {[%clk 0:00:27.6]} 32... Rxd3 {[%clk 0:00:17.6]} 33. Rc7 {[%clk
0:00:28.3]} 33... Rb3 {[%clk 0:00:17.5]} 34. d6 {[%clk 0:00:27.4]} 34... Bxe4
{[%clk 0:00:14.9]} 35. Rc8# {[%clk 0:00:26.4]} 1-0

[Event "Late-Titled-Tuesday-Blitz-May-28-2024"]
[Site "Chess.com"]
[Date "2024.05.28"]
[Round "8"]
[White "Grebnev_A"]
[Black "rasmussvane"]
[Result "1-0"]
[WhiteElo "2685"]
[BlackElo "2918"]
[TimeControl "180+1"]
[EndTime "15:28:03 PDT"]
[Termination "Grebnev_A won by checkmate"]

1. Nf3 {[%clk 0:03:00.9]} 1... d5 {[%clk 0:02:59.8]} 2. e3 {[%clk 0:03:00.9]}
2... e6 {[%clk 0:02:58.4]} 3. c4 {[%clk 0:03:01.4]} 3... Nf6 {[%clk 0:02:58.9]}
4. Nc3 {[%clk 0:03:01.9]} 4... Bd6 {[%clk 0:02:51.3]} 5. b3 {[%clk 0:03:01.9]}
5... O-O {[%clk 0:02:50.8]} 6. Bb2 {[%clk 0:03:02.1]} 6... Re8 {[%clk
0:02:44.9]} 7. Rc1 {[%clk 0:03:00.9]} 7... a6 {[%clk 0:02:37.8]} 8. d4 {[%clk
0:02:58]} 8... b6 {[%clk 0:02:36.2]} 9. Bd3 {[%clk 0:02:57.3]} 9... Bb7 {[%clk
0:02:36.2]} 10. O-O {[%clk 0:02:57.7]} 10... Nbd7 {[%clk 0:02:34.3]} 11. Ne2
{[%clk 0:02:57.1]} 11... dxc4 {[%clk 0:02:26.8]} 12. Bxc4 {[%clk 0:02:56.6]}
12... b5 {[%clk 0:02:17.9]} 13. Bd3 {[%clk 0:02:56.6]} 13... c5 {[%clk
0:02:17.6]} 14. dxc5 {[%clk 0:02:54.8]} 14... Bxc5 {[%clk 0:02:11.8]} 15. Ng3
{[%clk 0:02:47.5]} 15... Qe7 {[%clk 0:02:01.3]} 16. Qc2 {[%clk 0:02:42.5]} 16...
Rac8 {[%clk 0:01:59.3]} 17. Qb1 {[%clk 0:02:43]} 17... h6 {[%clk 0:01:24.5]} 18.
Ne4 {[%clk 0:02:40.9]} 18... Bxe4 {[%clk 0:01:19.5]} 19. Bxe4 {[%clk 0:02:41.8]}
19... Ba3 {[%clk 0:00:54.1]} 20. Bb7 {[%clk 0:02:29]} 20... Rb8 {[%clk
0:00:51.9]} 21. Bc6 {[%clk 0:02:28]} 21... Rec8 {[%clk 0:00:46.4]} 22. Bxd7
{[%clk 0:02:25.8]} 22... Nxd7 {[%clk 0:00:44.6]} 23. Nd4 {[%clk 0:02:25.6]}
23... Bxb2 {[%clk 0:00:42]} 24. Qxb2 {[%clk 0:02:25.6]} 24... Qf6 {[%clk
0:00:36.6]} 25. Qa3 {[%clk 0:02:23.5]} 25... e5 {[%clk 0:00:35.8]} 26. Nf3
{[%clk 0:02:24.1]} 26... Qe6 {[%clk 0:00:29.2]} 27. h3 {[%clk 0:02:21.8]} 27...
Nf8 {[%clk 0:00:16.6]} 28. Rfd1 {[%clk 0:02:20.6]} 28... Rxc1 {[%clk 0:00:10.6]}
29. Rxc1 {[%clk 0:02:21.5]} 29... Ng6 {[%clk 0:00:10.7]} 30. Qc5 {[%clk
0:02:19.9]} 30... Rd8 {[%clk 0:00:09.5]} 31. Qa7 {[%clk 0:02:10.9]} 31... Rd7
{[%clk 0:00:09.3]} 32. Rc7 {[%clk 0:02:08.2]} 32... Rd1+ {[%clk 0:00:07.1]} 33.
Kh2 {[%clk 0:02:07.2]} 33... Ra1 {[%clk 0:00:07.3]} 34. Qa8+ {[%clk 0:02:02.8]}
34... Kh7 {[%clk 0:00:07.2]} 35. Rc6 {[%clk 0:02:02.4]} 35... Qd5 {[%clk
0:00:05]} 36. Rxa6 {[%clk 0:01:59]} 36... Qd1 {[%clk 0:00:04.8]} 37. Qe4 {[%clk
0:01:58]} 37... Qh1+ {[%clk 0:00:03.5]} 38. Kg3 {[%clk 0:01:58.1]} 38... Qd1
{[%clk 0:00:02.5]} 39. Nxe5 {[%clk 0:01:56.4]} 39... Qd8 {[%clk 0:00:01]} 40.
Nxg6 {[%clk 0:01:43.6]} 40... Qg5+ {[%clk 0:00:01.3]} 41. Qg4 {[%clk 0:01:44.1]}
41... fxg6 {[%clk 0:00:01]} 42. Qxg5 {[%clk 0:01:44.1]} 42... hxg5 {[%clk
0:00:01.9]} 43. Ra5 {[%clk 0:01:44.2]} 43... Kh6 {[%clk 0:00:02.3]} 44. Kg4
{[%clk 0:01:44.1]} 44... b4 {[%clk 0:00:02.5]} 45. Ra4 {[%clk 0:01:43.6]} 45...
Rb1 {[%clk 0:00:01.3]} 46. Rxb4 {[%clk 0:01:41.5]} 46... Rb2 {[%clk 0:00:01.9]}
47. a4 {[%clk 0:01:41.7]} 47... Rxf2 {[%clk 0:00:02.2]} 48. Kg3 {[%clk
0:01:42.4]} 48... Re2 {[%clk 0:00:02.6]} 49. Kf3 {[%clk 0:01:43]} 49... Ra2
{[%clk 0:00:02.8]} 50. Rb5 {[%clk 0:01:43.1]} 50... Kh5 {[%clk 0:00:02.9]} 51.
a5 {[%clk 0:01:42.6]} 51... Kh4 {[%clk 0:00:03.3]} 52. b4 {[%clk 0:01:43]} 52...
g4+ {[%clk 0:00:03.5]} 53. hxg4 {[%clk 0:01:43]} 53... g5 {[%clk 0:00:03.7]} 54.
g3+ {[%clk 0:01:41]} 54... Kh3 {[%clk 0:00:03.7]} 55. Rxg5 {[%clk 0:01:41.6]}
55... g6 {[%clk 0:00:03.5]} 56. Rxg6 {[%clk 0:01:41.5]} 56... Kh2 {[%clk
0:00:04.1]} 57. Rh6+ {[%clk 0:01:41.2]} 57... Kg1 {[%clk 0:00:04.6]} 58. g5
{[%clk 0:01:41.9]} 58... Rf2+ {[%clk 0:00:03.6]} 59. Kg4 {[%clk 0:01:42.4]}
59... Kg2 {[%clk 0:00:03.6]} 60. g6 {[%clk 0:01:42.4]} 60... Rf8 {[%clk
0:00:03.9]} 61. g7 {[%clk 0:01:42.7]} 61... Rf7 {[%clk 0:00:03.2]} 62. g8=Q
{[%clk 0:01:42.1]} 62... Rf2 {[%clk 0:00:03]} 63. Qd5+ {[%clk 0:01:41.3]} 63...
Kg1 {[%clk 0:00:02.7]} 64. Rh1# {[%clk 0:01:41.5]} 1-0

[Event "Late-Titled-Tuesday-Blitz-May-28-2024"]
[Site "Chess.com"]
[Date "2024.05.28"]
[Round "8"]
[White "Veleamater"]
[Black "ValeriyGrinev"]
[Result "0-1"]
[WhiteElo "2451"]
[BlackElo "2586"]
[TimeControl "180+1"]
[EndTime "15:28:07 PDT"]
[Termination "ValeriyGrinev won on time"]

1. g3 {[%clk 0:03:00.9]} 1... c5 {[%clk 0:03:00.9]} 2. Bg2 {[%clk 0:03:00.2]}
2... d5 {[%clk 0:03:01.6]} 3. d3 {[%clk 0:03:00.3]} 3... Nf6 {[%clk 0:03:02.2]}
4. Nf3 {[%clk 0:03:00.4]} 4... Nc6 {[%clk 0:03:02.8]} 5. O-O {[%clk 0:03:00.7]}
5... g6 {[%clk 0:03:03.4]} 6. Nc3 {[%clk 0:03:01]} 6... Bg7 {[%clk 0:03:04.1]}
7. e4 {[%clk 0:03:01.1]} 7... dxe4 {[%clk 0:03:03.2]} 8. dxe4 {[%clk 0:03:01.1]}
8... O-O {[%clk 0:03:02.1]} 9. h3 {[%clk 0:03:00.9]} 9... b6 {[%clk 0:03:00.2]}
10. Be3 {[%clk 0:03:00.7]} 10... Bb7 {[%clk 0:02:59.6]} 11. Nd2 {[%clk
0:03:00.5]} 11... Qc7 {[%clk 0:02:51.2]} 12. f4 {[%clk 0:03:00.4]} 12... Rad8
{[%clk 0:02:50.5]} 13. e5 {[%clk 0:03:00]} 13... Nh5 {[%clk 0:02:47.2]} 14. g4
{[%clk 0:02:45.9]} 14... Nxf4 {[%clk 0:02:46.5]} 15. Bxf4 {[%clk 0:02:41.5]}
15... Nxe5 {[%clk 0:02:46.2]} 16. Qe2 {[%clk 0:02:38.2]} 16... Bxg2 {[%clk
0:02:43.3]} 17. Kxg2 {[%clk 0:02:38.4]} 17... Qc6+ {[%clk 0:02:33]} 18. Nf3
{[%clk 0:02:35.9]} 18... Nxf3 {[%clk 0:02:29]} 19. Qxf3 {[%clk 0:02:33.2]} 19...
Qc8 {[%clk 0:02:23.3]} 20. Rad1 {[%clk 0:02:31.2]} 20... e5 {[%clk 0:02:05.4]}
21. Bg5 {[%clk 0:02:10.1]} 21... f6 {[%clk 0:02:03.8]} 22. Bh4 {[%clk 0:02:10]}
22... Rd4 {[%clk 0:02:01]} 23. Nd5 {[%clk 0:01:48.9]} 23... Qe6 {[%clk
0:01:56.3]} 24. Ne3 {[%clk 0:01:39.7]} 24... Qxa2 {[%clk 0:01:50.1]} 25. b3
{[%clk 0:01:38.4]} 25... Qa6 {[%clk 0:01:45.5]} 26. Nd5 {[%clk 0:01:25.7]} 26...
e4 {[%clk 0:01:38.1]} 27. Qe3 {[%clk 0:01:08.7]} 27... Qb7 {[%clk 0:01:35.7]}
28. Rxd4 {[%clk 0:00:58.5]} 28... cxd4 {[%clk 0:01:34.4]} 29. Qxd4 {[%clk
0:00:58.6]} 29... f5 {[%clk 0:01:30.9]} 30. Qc4 {[%clk 0:00:58.1]} 30... Kh8
{[%clk 0:01:29.3]} 31. gxf5 {[%clk 0:00:52.5]} 31... gxf5 {[%clk 0:01:29.1]} 32.
Nf4 {[%clk 0:00:49.6]} 32... Be5 {[%clk 0:01:27.8]} 33. Qe6 {[%clk 0:00:46]}
33... Qg7+ {[%clk 0:01:26.3]} 34. Kh2 {[%clk 0:00:38]} 34... Rg8 {[%clk
0:01:23]} 35. Kh1 {[%clk 0:00:22.4]} 35... e3 {[%clk 0:00:58]} 36. Re1 {[%clk
0:00:05.3]} 36... e2 {[%clk 0:00:38.7]} 37. Qxf5 {[%clk 0:00:02.2]} 37... Qb7+
{[%clk 0:00:37.6]} 0-1

[Event "Late-Titled-Tuesday-Blitz-May-28-2024"]
[Site "Chess.com"]
[Date "2024.05.28"]
[Round "8"]
[White "Synctel"]
[Black "egnfanclub"]
[Result "0-1"]
[WhiteElo "2080"]
[BlackElo "2328"]
[TimeControl "180+1"]
[EndTime "15:28:08 PDT"]
[Termination "egnfanclub won on time"]

1. d4 {[%clk 0:03:00.9]} 1... d5 {[%clk 0:02:59.7]} 2. Nf3 {[%clk 0:02:59.9]}
2... Nf6 {[%clk 0:02:59.3]} 3. e3 {[%clk 0:03:00]} 3... Bf5 {[%clk 0:02:57.6]}
4. c4 {[%clk 0:03:00.2]} 4... c6 {[%clk 0:02:56.4]} 5. Nc3 {[%clk 0:02:59.5]}
5... e6 {[%clk 0:02:56.2]} 6. Qb3 {[%clk 0:02:58.4]} 6... Qb6 {[%clk 0:02:56.2]}
7. c5 {[%clk 0:02:58.2]} 7... Qxb3 {[%clk 0:02:55.8]} 8. axb3 {[%clk 0:02:59.1]}
8... Be7 {[%clk 0:02:47.2]} 9. b4 {[%clk 0:02:58.9]} 9... a6 {[%clk 0:02:47.7]}
10. b5 {[%clk 0:02:58.9]} 10... Ne4 {[%clk 0:02:38.7]} 11. b6 {[%clk 0:01:59.8]}
11... f6 {[%clk 0:02:22.2]} 12. Nb5 {[%clk 0:01:52.2]} 12... cxb5 {[%clk
0:02:20.2]} 13. Bxb5+ {[%clk 0:01:51.4]} 13... Kd8 {[%clk 0:02:10.4]} 14. Nh4
{[%clk 0:01:41.3]} 14... Bg6 {[%clk 0:02:02.8]} 15. f3 {[%clk 0:01:37.6]} 15...
Ng5 {[%clk 0:02:02]} 16. Kf2 {[%clk 0:01:19.5]} 16... Be8 {[%clk 0:02:00.6]} 17.
Be2 {[%clk 0:01:19]} 17... Nc6 {[%clk 0:01:51.1]} 18. Bd2 {[%clk 0:01:17.3]}
18... Bd7 {[%clk 0:01:47.6]} 19. b4 {[%clk 0:01:05.4]} 19... Rb8 {[%clk
0:01:23.7]} 20. g4 {[%clk 0:00:58.9]} 20... e5 {[%clk 0:01:19.9]} 21. Bc3 {[%clk
0:00:49.3]} 21... exd4 {[%clk 0:01:15.1]} 22. exd4 {[%clk 0:00:49.9]} 22... Ne6
{[%clk 0:01:16]} 23. Ng2 {[%clk 0:00:49.5]} 23... Nexd4 {[%clk 0:01:15.6]} 24.
Bxd4 {[%clk 0:00:43.8]} 24... Nxd4 {[%clk 0:01:15.5]} 25. Bd3 {[%clk 0:00:44.5]}
25... Bb5 {[%clk 0:01:10.5]} 26. Bb1 {[%clk 0:00:35.9]} 26... Nc6 {[%clk
0:01:07.9]} 27. Nf4 {[%clk 0:00:33.9]} 27... Nxb4 {[%clk 0:01:05.7]} 28. Ne6+
{[%clk 0:00:27.6]} 28... Kd7 {[%clk 0:01:00.7]} 29. Nxg7 {[%clk 0:00:27.8]}
29... Bxc5+ {[%clk 0:01:00.3]} 30. Kg2 {[%clk 0:00:26.2]} 30... Bxb6 {[%clk
0:00:57.4]} 31. Bf5+ {[%clk 0:00:26]} 31... Kd6 {[%clk 0:00:56.1]} 32. Rhe1
{[%clk 0:00:23.7]} 32... Bd7 {[%clk 0:00:49.3]} 33. Bxd7 {[%clk 0:00:18.6]}
33... Kxd7 {[%clk 0:00:49]} 34. f4 {[%clk 0:00:09.7]} 34... Nc2 {[%clk
0:00:48.9]} 35. Red1 {[%clk 0:00:07.6]} 35... Nxa1 {[%clk 0:00:47.1]} 36. Rxd5+
{[%clk 0:00:08]} 36... Kc6 {[%clk 0:00:45.9]} 37. Rd1 {[%clk 0:00:04.4]} 37...
Nb3 {[%clk 0:00:44.9]} 38. Nf5 {[%clk 0:00:04.3]} 38... Rbd8 {[%clk 0:00:42.2]}
39. Ne7+ {[%clk 0:00:04.3]} 39... Kc7 {[%clk 0:00:41.8]} 0-1

[Event "Late-Titled-Tuesday-Blitz-May-28-2024"]
[Site "Chess.com"]
[Date "2024.05.28"]
[Round "8"]
[White "Love7Unicorn"]
[Black "NMJeevanK"]
[Result "0-1"]
[WhiteElo "2531"]
[BlackElo "2685"]
[TimeControl "180+1"]
[EndTime "15:28:13 PDT"]
[Termination "NMJeevanK won on time"]

1. d4 {[%clk 0:02:51.8]} 1... d5 {[%clk 0:03:00.1]} 2. c4 {[%clk 0:02:52.4]}
2... e6 {[%clk 0:02:59.7]} 3. g3 {[%clk 0:02:51.5]} 3... Nf6 {[%clk 0:03:00.1]}
4. Bg2 {[%clk 0:02:52]} 4... Bb4+ {[%clk 0:03:00]} 5. Nd2 {[%clk 0:02:51.8]}
5... O-O {[%clk 0:02:58.1]} 6. Nf3 {[%clk 0:02:51.4]} 6... dxc4 {[%clk
0:02:58.2]} 7. Qc2 {[%clk 0:02:51.7]} 7... Nc6 {[%clk 0:02:54.5]} 8. Qxc4 {[%clk
0:02:51.6]} 8... Re8 {[%clk 0:02:53.9]} 9. O-O {[%clk 0:02:49.5]} 9... Bxd2
{[%clk 0:02:52.2]} 10. Bxd2 {[%clk 0:02:47.4]} 10... e5 {[%clk 0:02:52.8]} 11.
dxe5 {[%clk 0:02:40.2]} 11... Nxe5 {[%clk 0:02:50.8]} 12. Nxe5 {[%clk
0:02:40.3]} 12... Rxe5 {[%clk 0:02:51]} 13. Bf4 {[%clk 0:02:20.7]} 13... Re7
{[%clk 0:02:44.8]} 14. Rfd1 {[%clk 0:02:15.3]} 14... Qe8 {[%clk 0:02:43.2]} 15.
Rac1 {[%clk 0:01:32.3]} 15... c6 {[%clk 0:02:39.3]} 16. Bg5 {[%clk 0:01:05.1]}
16... Re6 {[%clk 0:02:38.4]} 17. Rd4 {[%clk 0:00:42.1]} 17... h6 {[%clk
0:02:35.3]} 18. Bxf6 {[%clk 0:00:35]} 18... Rxf6 {[%clk 0:02:36.2]} 19. Rcd1
{[%clk 0:00:35.1]} 19... Be6 {[%clk 0:02:31.4]} 20. Qb4 {[%clk 0:00:35.5]} 20...
b6 {[%clk 0:02:20.4]} 21. Rd6 {[%clk 0:00:35.5]} 21... Rc8 {[%clk 0:02:18.5]}
22. Bxc6 {[%clk 0:00:30.1]} 22... Qf8 {[%clk 0:02:09.6]} 23. Qa4 {[%clk
0:00:27.8]} 23... Bb3 {[%clk 0:02:00.3]} 24. Qxb3 {[%clk 0:00:06.9]} 24... Rxd6
{[%clk 0:02:00.2]} 25. Rxd6 {[%clk 0:00:07.6]} 25... Qxd6 {[%clk 0:02:00.9]} 26.
Bd5 {[%clk 0:00:07.7]} 26... Qd7 {[%clk 0:01:58]} 27. Kg2 {[%clk 0:00:07.1]}
27... Rc5 {[%clk 0:01:53.6]} 28. e4 {[%clk 0:00:07.5]} 28... Rc7 {[%clk
0:01:53.9]} 29. Qf3 {[%clk 0:00:06.5]} 29... Qd6 {[%clk 0:01:53]} 30. h4 {[%clk
0:00:06.4]} 30... Re7 {[%clk 0:01:53.1]} 31. Qc3 {[%clk 0:00:06.1]} 31... Rc7
{[%clk 0:01:52.2]} 32. Qf3 {[%clk 0:00:06.3]} 32... Qe5 {[%clk 0:01:52.6]} 33.
b3 {[%clk 0:00:03.5]} 33... h5 {[%clk 0:01:51.2]} 34. Qe2 {[%clk 0:00:02.7]}
34... g6 {[%clk 0:01:50.7]} 35. Qf3 {[%clk 0:00:03.2]} 35... Re7 {[%clk
0:01:50.2]} 36. Qd3 {[%clk 0:00:03.2]} 36... Kg7 {[%clk 0:01:49.9]} 37. Qc4
{[%clk 0:00:03.5]} 37... Rc7 {[%clk 0:01:49.6]} 38. Qd3 {[%clk 0:00:03.9]} 38...
Rc3 {[%clk 0:01:49.9]} 39. Qd1 {[%clk 0:00:03.3]} 39... Qf6 {[%clk 0:01:49.2]}
40. Qe2 {[%clk 0:00:03]} 40... Qd4 {[%clk 0:01:47.9]} 41. Bc4 {[%clk 0:00:02.6]}
41... Qe5 {[%clk 0:01:46.8]} 42. Bd5 {[%clk 0:00:02.7]} 42... Rc5 {[%clk
0:01:41.5]} 43. Qf3 {[%clk 0:00:02.5]} 43... Rc7 {[%clk 0:01:38.6]} 44. Kg1
{[%clk 0:00:02.7]} 44... b5 {[%clk 0:01:36]} 45. Kg2 {[%clk 0:00:03]} 45... a5
{[%clk 0:01:35.8]} 46. a4 {[%clk 0:00:02.9]} 46... b4 {[%clk 0:01:35.4]} 47. Qe2
{[%clk 0:00:02.3]} 47... Rc3 {[%clk 0:01:34]} 48. Kg1 {[%clk 0:00:02]} 48... Qd4
{[%clk 0:01:32.2]} 49. Kg2 {[%clk 0:00:01.7]} 49... Rd3 {[%clk 0:01:31.8]} 50.
Bc4 {[%clk 0:00:01.2]} 50... Rc3 {[%clk 0:01:30.6]} 51. Bd5 {[%clk 0:00:01.3]}
51... f5 {[%clk 0:01:29.4]} 52. Ba8 {[%clk 0:00:01]} 52... fxe4 {[%clk
0:01:23.7]} 53. Bxe4 {[%clk 0:00:01.9]} 53... Rxb3 {[%clk 0:01:21.2]} 54. Bb7
{[%clk 0:00:01.9]} 54... Qf6 {[%clk 0:01:16.9]} 55. Qb5 {[%clk 0:00:01.7]} 55...
Qd8 {[%clk 0:01:12.4]} 56. Qxa5 {[%clk 0:00:01.8]} 56... Qxa5 {[%clk 0:01:12]}
0-1